bitfinex/quotes_SOLUSD_20220207
["timestamp","ask_amount","ask_price","bid_price","bid_amount"]
[1644269598287,34.05409666,117.78,117.65,46.75201148]
[1644269598488,9.02482896,117.77,117.65,46.75201148]
[1644269598687,6.24282,117.76,117.65,46.75201148]
[1644269599089,52.8215064,117.76,117.65,46.75201148]
[1644269599487,52.8215064,117.76,117.65,47.00201148]
[1644269599488,73.11537425,117.76,117.65,47.00201148]
[1644269599689,73.11537425,117.76,117.65,53.00201148]
[1644269600090,32.78668785,117.76,117.65,53.00201148]
[1644269600492,32.53668785,117.76,117.65,53.00201148]
[1644269600692,16.42282,117.76,117.65,57.24901148]
[1644269600891,18.93756595,117.81,117.65,57.24901148]
[1644269600892,127.29,117.89,117.67,155.32123393]
[1644269601095,136.3803,117.94,117.68,137.47]
[1644269601096,71.8439,117.92,117.68,137.47]
[1644269601293,34.6592915,117.91,117.69,170.05846993]
[1644269601494,34.6592915,117.91,117.73,36.98060378]
[1644269601690,34.6592915,117.91,117.75,43.51432074]
[1644269601891,34.6592915,117.91,117.77,41.98677723]
[1644269602092,34.6592915,117.91,117.79,41.17488496]
[1644269602292,40.61020065,117.89,117.79,51.60488496]
[1644269602592,40.61020065,117.89,117.79,6.25]
[1644269602792,14.88032857,117.88,117.72,131.533]
[1644269602993,4.244,117.87,117.73,10.18]
[1644269603192,12.39082857,117.87,117.73,16.43]
[1644269603391,2.14682857,117.86,117.73,16.43]
[1644269603594,155.0,117.84,117.62,1.20544084]
[1644269603792,155.0,117.84,117.58,1.91169488]
[1644269603793,2.14682857,117.72,117.58,1.91169488]
[1644269603996,2.14682857,117.72,117.58,0.024]
[1644269603997,38.761999,117.71,117.58,0.024]
[1644269604191,26.589179,117.7,117.58,0.024]
[1644269604392,20.844037,117.69,117.55,0.024]
[1644269604592,15.09700228,117.68,117.55,43.61920485]
[1644269604791,25.095037,117.67,117.56,0.024]
[1644269604992,27.350728,117.66,117.56,0.024]
[1644269605193,33.350728,117.66,117.55,43.59520485]
[1644269605394,21.107908,117.65,117.55,43.61920485]
[1644269605595,6.0,117.65,117.55,43.61920485]
[1644269605894,19.0087,117.65,117.55,43.61920485]
[1644269606097,0.25,117.65,117.57,34.56580786]
[1644269606296,4.251,117.7,117.57,34.56580786]
[1644269606495,6.24282,117.69,117.57,44.74580786]
[1644269606695,24.91070081,117.69,117.58,0.024]
[1644269607096,127.29,117.64,117.46,0.21284486]
[1644269607296,127.29,117.61,117.46,0.21284486]
[1644269607498,141.723,117.6,117.47,0.024]
[1644269607697,10.18,117.59,117.47,0.024]
[1644269607897,10.18,117.58,117.47,0.024]
[1644269608097,10.18,117.57,117.45,41.42067161]
[1644269608297,10.43,117.57,117.46,0.024]
[1644269608498,16.43,117.57,117.46,0.024]
[1644269608804,16.18,117.57,117.46,0.024]
[1644269608997,10.18,117.57,117.47,2.03449482]
[1644269609197,10.43,117.57,117.48,46.42731574]
[1644269609600,10.18,117.57,117.48,52.42731574]
[1644269609798,12.7641,117.6,117.48,54.46181056]
[1644269610002,10.18,117.58,117.49,0.024]
[1644269610199,10.43,117.58,117.48,52.42731574]
[1644269610599,10.18,117.58,117.48,52.42731574]
[1644269611000,10.18,117.58,117.48,54.46181056]
[1644269611201,12.7641,117.6,117.48,54.46181056]
[1644269611402,10.18,117.59,117.48,54.48581056]
[1644269612003,10.18,117.59,117.48,54.73581056]
[1644269612801,12.7657,117.58,117.44,0.0047366]
[1644269613007,0.31417859,117.53,117.44,0.0047366]
[1644269613202,20.67782,117.52,117.44,0.0047366]
[1644269613401,163.2890552,117.52,117.44,0.0047366]
[1644269613602,2.14682857,117.51,117.44,0.0047366]
[1644269613802,10.18,117.5,117.44,0.0047366]
[1644269614005,17.0336,117.49,117.44,0.0047366]
[1644269614204,10.18,117.48,117.44,0.0047366]
[1644269614405,47.0,117.47,117.42,0.5698268]
[1644269614603,10.18,117.46,117.42,0.5698268]
[1644269614804,7.63964315,117.45,117.42,0.0098268]
[1644269615004,10.18,117.44,117.39,0.10712174]
[1644269615203,10.18,117.44,117.39,0.00712174]
[1644269615404,12.541357,117.43,117.39,0.00712174]
[1644269615603,14.438,117.42,117.39,0.00424348]
[1644269615803,12.543493,117.41,117.22,0.42638352]
[1644269616006,10.18,117.4,117.31,0.024]
[1644269616304,34.779057,117.39,117.23,0.024]
[1644269616508,16.42282,117.39,117.23,0.024]
[1644269616704,8.29391953,117.38,117.23,0.024]
[1644269616905,16.42282,117.37,117.23,0.024]
[1644269617107,127.29,117.36,117.23,0.024]
[1644269617306,12.7991,117.33,117.2,0.6866115]
[1644269617505,24.45731104,117.32,117.2,0.6866115]
[1644269617704,24.914242,117.31,117.21,0.024]
[1644269617906,133.48258753,117.3,117.21,0.024]
[1644269618106,12.537079,117.29,117.2,0.6866115]
[1644269618305,12.8078,117.27,117.18,0.3447255]
[1644269618507,10.18,117.26,117.18,0.4162251]
[1644269618706,20.445,117.26,117.18,0.3922251]
[1644269618907,6.24282,117.25,117.18,0.3922251]
[1644269619110,10.18,117.25,117.18,0.3922251]
[1644269619507,12.8042,117.24,117.18,0.3922251]
[1644269619708,10.18,117.23,117.18,0.3922251]
[1644269619909,0.31792355,117.19,117.16,0.1899984]
[1644269620109,10.18,117.18,117.14,0.5939952]
[1644269620310,10.18,117.17,117.14,0.5699952]
[1644269620713,22.9919,117.17,117.14,0.5699952]
[1644269621310,10.43,117.17,117.14,0.5699952]
[1644269621714,10.43,117.17,117.1,37.03814316]
[1644269621913,10.43,117.17,117.1,37.01414316]
[1644269621914,16.67282,117.17,117.1,37.01414316]
[1644269622313,16.42282,117.17,117.1,37.01414316]
[1644269622714,16.67282,117.17,117.1,37.01414316]
[1644269622915,10.43,117.17,117.1,37.01414316]
[1644269623312,6.24282,117.16,117.1,37.01414316]
[1644269623914,12.809,117.19,117.1,43.01414316]
[1644269624217,19.05182,117.19,117.1,43.26414316]
[1644269624813,19.05182,117.19,117.1,37.01414316]
[1644269625013,19.05182,117.19,117.1,37.26414316]
[1644269625414,19.30182,117.19,117.09,0.274]
[1644269625714,12.8127,117.16,117.09,0.25]
[1644269625914,6.24282,117.15,117.09,0.25]
[1644269627314,12.809,117.19,117.1,68.0]
[1644269627516,6.24282,117.18,117.09,0.274]
[1644269627715,6.24282,117.18,117.09,0.25]
[1644269627918,0.00282,117.18,117.09,13.0523]
[1644269628115,42.6676,117.3,117.09,19.0523]
[1644269628316,42.6676,117.3,117.1,0.024]
[1644269628515,14.446,117.29,117.1,0.024]
[1644269628718,10.18,117.29,117.1,0.024]
[1644269629116,17.20463748,117.28,117.1,37.34673216]
[1644269629319,10.18,117.27,117.11,0.024]
[1644269629516,3.19786958,117.26,117.11,0.024]
[1644269629716,10.18,117.26,117.11,23.0035]
[1644269629919,22.9782,117.29,117.12,0.024]
[1644269630717,41.70985244,117.29,117.12,44.95826836]
[1644269631116,41.70985244,117.29,117.12,50.95826836]
[1644269631318,22.9782,117.29,117.12,50.95826836]
[1644269631540,22.9782,117.29,117.13,10.18]
[1644269631716,10.18,117.29,117.14,0.024]
[1644269632118,10.18,117.29,117.15,10.18]
[1644269632319,10.18,117.29,117.16,45.96710887]
[1644269632518,10.18,117.29,117.17,0.024]
[1644269632720,10.18,117.29,117.17,2.05332894]
[1644269632920,22.9747,117.32,117.17,2.05332894]
[1644269633120,22.9747,117.32,117.18,0.024]
[1644269633622,15.79169808,117.31,117.18,37.5634834]
[1644269633920,17.40830898,117.29,117.18,37.8134834]
[1644269634123,22.9775,117.29,117.18,43.8134834]
[1644269634320,22.9775,117.29,117.18,43.5634834]
[1644269635020,43.31401117,117.29,117.18,43.5634834]
[1644269635222,43.56401117,117.29,117.18,43.5634834]
[1644269635522,23.2275,117.29,117.18,43.5634834]
[1644269635720,22.9775,117.29,117.18,43.5634834]
[1644269636222,22.9775,117.29,117.18,37.8134834]
[1644269636420,12.7975,117.29,117.18,37.5634834]
[1644269636821,27.2385,117.32,117.18,37.5634834]
[1644269637024,22.9745,117.32,117.18,37.5634834]
[1644269637422,22.9745,117.32,117.18,43.5634834]
[1644269637722,22.9745,117.32,117.18,43.8134834]
[1644269638721,12.7945,117.32,117.18,43.8134834]
[1644269638923,14.87093569,117.31,117.18,37.5634834]
[1644269639147,25.05093569,117.31,117.18,37.5634834]
[1644269639347,5.53157137,117.29,117.18,37.5634834]
[1644269639550,4.264,117.28,117.18,37.5634834]
[1644269639746,19.97657137,117.29,117.18,37.5394834]
[1644269639946,12.7984,117.28,117.18,37.5634834]
[1644269640150,12.7984,117.28,117.18,37.5394834]
[1644269640349,13.0484,117.28,117.18,37.5394834]
[1644269640753,12.7984,117.28,117.18,37.7894834]
[1644269642550,12.7984,117.28,117.18,43.7894834]
[1644269642751,10.18,117.29,117.18,43.7894834]
[1644269643051,12.7959,117.32,117.18,43.8134834]
[1644269643252,81.4226,117.35,117.18,53.9934834]
[1644269643452,81.4226,117.35,117.18,56.02281234]
[1644269643653,81.4226,117.35,117.18,57.20600699]
[1644269644556,34.3904,117.35,117.19,1.18319465]
[1644269644755,24.2104,117.35,117.2,11.38719465]
[1644269644953,24.9724,117.38,117.21,1.20719465]
[1644269645154,10.18,117.41,117.22,10.204]
[1644269645456,26.37343716,117.41,117.25,1.18319465]
[1644269645654,10.18,117.41,117.26,44.78604114]
[1644269645952,10.18,117.41,117.26,47.99856473]
[1644269646156,10.18,117.41,117.26,51.03604114]
[1644269646554,10.18,117.41,117.27,2.02932894]
[1644269646754,10.18,117.41,117.28,38.85386408]
[1644269646955,10.18,117.41,117.29,0.024]
[1644269647754,84.8572,117.42,117.29,0.024]
[1644269648357,72.0723,117.42,117.29,0.024]
[1644269649356,72.0723,117.42,117.29,10.204]
[1644269649556,78.0723,117.42,117.3,41.4953217]
[1644269649756,88.2523,117.42,117.3,41.7453217]
[1644269649960,88.2523,117.42,117.3,47.7453217]
[1644269650359,39.8406,117.42,117.3,47.7453217]
[1644269650557,33.5906,117.42,117.3,47.7453217]
[1644269650760,33.5906,117.42,117.31,0.0832]
[1644269650959,33.5906,117.42,117.31,0.1072]
[1644269651156,31.0906,117.42,117.31,0.1072]
[1644269652464,20.9106,117.42,117.31,0.1072]
[1644269652662,78.4331,117.44,117.32,2.02932894]
[1644269652862,22.9589,117.46,117.32,2.05332894]
[1644269653161,22.9589,117.46,117.33,0.024]
[1644269653461,12.7822,117.43,117.33,0.024]
[1644269653662,16.48821767,117.43,117.33,0.024]
[1644269653862,12.7822,117.43,117.33,0.024]
[1644269654164,12.7822,117.43,117.34,0.0832]
[1644269656067,22.9593,117.46,117.34,0.0832]
[1644269656269,22.9593,117.46,117.34,0.1072]
[1644269656672,47.5177,117.47,117.34,0.1072]
[1644269656875,47.5177,117.47,117.35,0.024]
[1644269657270,47.5177,117.47,117.36,0.0832]
[1644269658371,3.72745261,117.46,117.36,0.0832]
[1644269659076,47.5177,117.47,117.36,0.0832]
[1644269659273,12.7778,117.47,117.36,0.0832]
[1644269659473,33.4362,117.49,117.36,0.0832]
[1644269659474,23.2562,117.49,117.36,0.0832]
[1644269659672,23.2562,117.49,117.37,0.024]
[1644269660472,36.032,117.49,117.38,0.0832]
[1644269660874,36.032,117.49,117.38,0.1072]
[1644269661573,51.09834565,117.49,117.38,0.1072]
[1644269661774,36.032,117.49,117.38,0.1072]
[1644269662775,36.032,117.49,117.38,0.0832]
[1644269663675,36.032,117.49,117.37,41.32389218]
[1644269663676,23.2562,117.49,117.37,41.32389218]
[1644269663875,124.8889,117.51,117.37,41.32389218]
[1644269664079,12.773,117.52,117.38,12.7703]
[1644269664277,10.18,117.53,117.38,13.0203]
[1644269664478,13.84485665,117.54,117.38,13.0203]
[1644269664676,19.84485665,117.54,117.38,13.0203]
[1644269664876,35.68103994,117.54,117.39,34.50235355]
[1644269665179,45.86103994,117.54,117.39,34.50235355]
[1644269665377,45.86103994,117.54,117.39,34.75235355]
[1644269665981,12.7712,117.53,117.39,40.75235355]
[1644269666179,18.7712,117.53,117.39,34.75235355]
[1644269666378,12.7712,117.53,117.39,34.75235355]
[1644269666584,18.7712,117.53,117.39,34.75235355]
[1644269666779,18.7712,117.53,117.4,0.0832]
[1644269667784,75.8443,117.55,117.4,0.0832]
[1644269668081,84.3563,117.55,117.41,10.18]
[1644269668280,84.3563,117.55,117.41,10.43]
[1644269668482,84.3563,117.55,117.41,16.43]
[1644269668883,84.3563,117.55,117.42,35.70388089]
[1644269669284,84.3563,117.55,117.42,46.13388089]
[1644269669684,84.3563,117.55,117.42,52.13388089]
[1644269669984,84.3563,117.55,117.43,0.0832]
[1644269671290,15.71519153,117.54,117.43,0.0832]
[1644269671686,84.3563,117.55,117.43,0.0832]
[1644269672592,100.91731236,117.55,117.43,0.0832]
[1644269672822,107.16731236,117.55,117.43,0.0832]
[1644269673022,28.649599,117.54,117.43,0.0832]
[1644269673215,12.7737,117.51,117.43,0.0832]
[1644269673414,39.51471236,117.51,117.43,0.0832]
[1644269673615,45.76471236,117.51,117.43,0.0832]
[1644269674214,29.2037,117.51,117.43,0.0832]
[1644269676115,1.64463331,117.5,117.43,0.0832]
[1644269676315,1.64463331,117.5,117.34,34.10689465]
[1644269676316,12.779,117.46,117.34,0.024]
[1644269676517,10.18,117.45,117.33,0.024]
[1644269676715,10.18,117.45,117.3,0.024]
[1644269676716,4.259,117.44,117.3,0.024]
[1644269676917,4.259,117.44,117.31,0.024]
[1644269676918,10.18,117.43,117.31,0.024]
[1644269677118,23.13767693,117.42,117.31,0.024]
[1644269677316,33.56767693,117.42,117.3,0.024]
[1644269677518,29.30767693,117.42,117.3,0.024]
[1644269677919,12.7841,117.41,117.3,0.024]
[1644269678120,22.9641,117.41,117.3,0.024]
[1644269678322,23.2141,117.41,117.3,0.024]
[1644269678918,22.9641,117.41,117.3,0.024]
[1644269679620,10.18,117.41,117.3,2.05329855]
[1644269679820,6.0,117.43,117.3,2.30329855]
[1644269680019,6.0,117.43,117.31,0.024]
[1644269680220,16.18,117.44,117.31,0.024]
[1644269680421,16.18,117.44,117.31,45.67671498]
[1644269680623,16.18,117.44,117.32,0.024]
[1644269680823,10.18,117.44,117.32,0.024]
[1644269681120,10.18,117.44,117.32,2.05329855]
[1644269681721,10.18,117.44,117.32,3.2364932]
[1644269681920,10.18,117.44,117.33,43.73785111]
[1644269682522,10.18,117.44,117.34,2.02929855]
[1644269682721,12.7818,117.45,117.34,2.27929855]
[1644269683621,12.7818,117.45,117.35,38.28332118]
[1644269683824,12.7818,117.45,117.35,38.53332118]
[1644269684023,12.7818,117.45,117.35,44.53332118]
[1644269684223,12.7818,117.45,117.33,1.18319465]
[1644269684224,16.916744,117.44,117.33,1.18319465]
[1644269684423,16.916744,117.44,117.31,1.18319465]
[1644269684424,12.784,117.42,117.31,1.18319465]
[1644269684625,12.784,117.42,117.28,1.20719465]
[1644269684626,14.44,117.41,117.28,1.20719465]
[1644269684824,10.43,117.41,117.3,0.024]
[1644269685024,4.26,117.4,117.3,0.024]
[1644269685225,10.18,117.39,117.27,45.03671173]
[1644269685425,12.7885,117.38,117.28,0.024]
[1644269685735,23.0495,117.38,117.27,43.87751708]
[1644269685927,18.7885,117.38,117.27,43.87751708]
[1644269686127,18.7885,117.38,117.27,44.12751708]
[1644269686526,12.7885,117.38,117.27,44.12751708]
[1644269686733,35.6221,117.41,117.27,45.31071173]
[1644269686926,45.8021,117.41,117.27,45.28671173]
[1644269687126,45.8021,117.41,117.28,0.024]
[1644269687325,1.39178582,117.4,117.28,0.024]
[1644269687928,12.7884,117.38,117.28,0.024]
[1644269688129,14.441,117.37,117.24,0.024]
[1644269688332,14.691,117.37,117.26,0.024]
[1644269688531,16.521842,117.36,117.26,0.024]
[1644269688730,10.18,117.36,117.24,0.024]
[1644269688929,12.7919,117.35,117.24,48.0038107]
[1644269689128,12.7919,117.35,117.24,54.0038107]
[1644269689330,18.05236958,117.34,117.24,54.0038107]
[1644269689528,18.05236958,117.34,117.24,52.79661605]
[1644269689730,22.9719,117.35,117.24,52.79661605]
[1644269690728,22.9719,117.35,117.24,53.04661605]
[1644269691130,10.18,117.35,117.24,53.04661605]
[1644269691331,10.18,117.35,117.24,54.2298107]
[1644269692031,10.18,117.35,117.24,53.04661605]
[1644269692532,10.18,117.35,117.24,54.2298107]
[1644269694332,10.18,117.35,117.24,52.79661605]
[1644269694733,10.43,117.35,117.24,52.79661605]
[1644269695136,10.18,117.35,117.24,52.79661605]
[1644269695733,12.792,117.34,117.24,53.04661605]
[1644269695936,10.18,117.35,117.24,53.04661605]
[1644269696138,22.7173,117.37,117.24,53.04661605]
[1644269696336,22.7173,117.37,117.25,0.024]
[1644269696737,35.5065,117.37,117.25,0.024]
[1644269697938,22.7173,117.37,117.25,0.024]
[1644269698745,17.49982166,117.36,117.25,0.024]
[1644269698941,30.28952166,117.36,117.25,0.024]
[1644269699343,30.53952166,117.36,117.25,0.024]
[1644269699545,30.28952166,117.36,117.25,0.024]
[1644269699845,12.7897,117.36,117.24,52.79661605]
[1644269700043,12.7897,117.36,117.24,53.9798107]
[1644269700244,12.7897,117.36,117.24,54.2298107]
[1644269700447,12.7897,117.36,117.25,1.18319465]
[1644269700645,22.7173,117.37,117.26,48.48275404]
[1644269700845,22.7173,117.37,117.26,48.73275404]
[1644269701046,22.7173,117.37,117.26,54.73275404]
[1644269702050,22.7173,117.37,117.26,55.91594869]
[1644269702450,35.5059,117.37,117.26,49.66594869]
[1644269702652,35.7559,117.37,117.26,48.48275404]
[1644269703152,35.7559,117.37,117.26,49.66594869]
[1644269703755,35.7559,117.37,117.26,49.91594869]
[1644269704352,35.5059,117.37,117.26,49.91594869]
[1644269704553,35.5059,117.37,117.26,55.91594869]
[1644269706257,3.90410159,117.36,117.28,38.51524599]
[1644269706453,12.7908,117.35,117.27,1.18319465]
[1644269706664,12.7908,117.35,117.26,1.18319465]
[1644269706864,13.0408,117.35,117.25,1.18319465]
[1644269707163,13.0408,117.35,117.24,1.18319465]
[1644269707363,13.0408,117.35,117.25,35.12583829]
[1644269707563,15.36651809,117.34,117.25,35.12583829]
[1644269707763,12.793,117.33,117.25,35.12583829]
[1644269708365,22.973,117.33,117.25,35.12583829]
[1644269708866,22.973,117.33,117.25,35.37583829]
[1644269709766,22.973,117.33,117.24,1.18319465]
[1644269709967,23.223,117.33,117.24,1.18319465]
[1644269710265,23.223,117.33,117.22,1.18319465]
[1644269710266,12.7986,117.29,117.22,1.18319465]
[1644269710465,10.18,117.28,117.2,1.18319465]
[1644269710675,10.18,117.27,117.18,1.18319465]
[1644269710865,10.18,117.26,117.21,40.61006182]
[1644269711267,10.18,117.26,117.18,1.20719465]
[1644269711567,10.18,117.26,117.18,6.0]
[1644269711768,10.43,117.26,117.18,6.0]
[1644269711966,10.43,117.26,117.17,1.18319465]
[1644269712167,10.43,117.26,117.18,48.25340982]
[1644269712566,15.40648673,117.25,117.18,48.25340982]
[1644269712767,10.18,117.24,117.18,48.25340982]
[1644269712967,10.18,117.24,117.16,1.18319465]
[1644269713168,10.43,117.24,117.15,1.18319465]
[1644269713367,14.696,117.24,117.14,1.18319465]
[1644269713568,20.696,117.24,117.13,1.20719465]
[1644269713768,20.696,117.24,117.12,1.18319465]
[1644269713967,5.11582351,117.23,117.13,46.37407049]
[1644269714175,12.8066,117.21,117.13,47.55726514]
[1644269714375,22.9866,117.21,117.13,46.37407049]
[1644269714580,23.2366,117.21,117.13,46.37407049]
[1644269715986,53.5488,117.24,117.13,46.62407049]
[1644269716179,10.18,117.23,117.13,46.64807049]
[1644269716380,10.18,117.23,117.15,46.47873261]
[1644269716687,10.18,117.23,117.15,46.72873261]
[1644269716880,55.3014,117.28,117.15,47.91192726]
[1644269716881,10.18,117.26,117.15,47.91192726]
[1644269717081,10.18,117.26,117.16,0.024]
[1644269717278,9.15848926,117.26,117.16,0.024]
[1644269718883,77.4002,117.3,117.16,1.20719465]
[1644269719083,26.687776,117.29,117.16,11.38719465]
[1644269719285,26.687776,117.29,117.16,11.63719465]
[1644269719481,10.18,117.29,117.17,42.14496554]
[1644269719682,10.18,117.29,117.17,42.39496554]
[1644269719981,10.18,117.29,117.17,43.57816019]
[1644269720181,14.09835461,117.29,117.17,43.57816019]
[1644269720486,14.09835461,117.29,117.17,42.39496554]
[1644269720684,27.39825718,117.29,117.17,42.39496554]
[1644269721484,27.14825718,117.29,117.17,42.39496554]
[1644269721888,12.7985,117.28,117.17,42.39496554]
[1644269722086,25.31945328,117.27,117.17,42.39496554]
[1644269722693,25.56945328,117.27,117.15,1.18319465]
[1644269722887,4.265,117.26,117.14,1.18319465]
[1644269723088,10.18,117.25,117.13,1.18319465]
[1644269723289,12.8039,117.23,117.13,1.20719465]
[1644269723488,22.9839,117.23,117.13,1.18319465]
[1644269723688,22.9839,117.23,117.14,45.66726381]
[1644269724087,38.12335328,117.23,117.14,45.66726381]
[1644269724591,38.12335328,117.23,117.13,1.20719465]
[1644269724592,38.12335328,117.23,117.13,0.024]
[1644269724789,38.12335328,117.23,117.11,1.20719465]
[1644269724988,42.39035328,117.23,117.11,1.20719465]
[1644269725189,48.64035328,117.23,117.11,1.20719465]
[1644269725388,48.64035328,117.23,117.12,35.56854725]
[1644269725590,63.83708442,117.23,117.12,0.024]
[1644269725789,85.24487093,117.23,117.1,0.024]
[1644269726791,12.521045,117.22,117.1,0.024]
[1644269726993,12.8129,117.18,117.1,0.024]
[1644269727194,10.18,117.17,116.98,114.1]
[1644269727394,127.29,117.15,117.04,1.20719171]
[1644269727592,24.20662,117.14,117.02,0.024]
[1644269727792,127.60537183,117.12,117.03,0.024]
[1644269728001,10.18,117.11,117.03,0.024]
[1644269728195,10.18,117.11,116.98,1.0]
[1644269728196,12.8246,117.07,117.01,36.16040568]
[1644269728393,12.8246,117.07,117.01,5.68e-06]
[1644269728593,18.8246,117.07,117.01,5.68e-06]
[1644269728794,19.0746,117.07,117.01,5.68e-06]
[1644269729094,13.0746,117.07,117.01,5.68e-06]
[1644269729295,13.0746,117.07,117.0,22.18662901]
[1644269729296,10.18,117.06,117.0,22.18662901]
[1644269729494,10.18,117.07,117.0,22.18662901]
[1644269729699,4.272,117.15,117.0,22.18662901]
[1644269729896,10.18,117.15,117.0,22.18662901]
[1644269730297,12.8156,117.13,117.01,46.95945671]
[1644269730597,48.50575357,117.12,117.01,46.95945671]
[1644269731000,202.37004459,117.12,117.01,46.95945671]
[1644269731197,136.71044074,117.11,117.01,46.95945671]
[1644269731408,12.8207,117.09,117.01,46.95945671]
[1644269731607,10.18,117.08,117.01,46.95945671]
[1644269734617,10.18,117.1,117.01,47.20945671]
[1644269734811,35.52052,117.12,117.01,53.20945671]
[1644269735108,35.52052,117.12,117.01,47.20945671]
[1644269735109,22.9973,117.12,117.01,47.20945671]
[1644269735511,10.18,117.12,117.01,53.20945671]
[1644269735711,23.5721,117.13,117.01,53.20945671]
[1644269735910,12.52322,117.12,117.01,53.20945671]
[1644269736312,48.75919739,117.11,117.01,52.95945671]
[1644269736709,48.75919739,117.11,117.01,46.95945671]
[1644269736710,10.18,117.1,117.01,46.95945671]
[1644269737709,10.18,117.1,117.01,47.20945671]
[1644269738613,10.18,117.1,117.01,46.95945671]
[1644269740217,10.18,117.1,117.01,47.20945671]
[1644269740642,10.18,117.1,117.01,53.20945671]
[1644269742449,10.18,117.1,117.01,47.20945671]
[1644269743047,12.8185,117.11,117.01,47.20945671]
[1644269743245,22.9985,117.11,117.01,47.20945671]
[1644269743745,10.18,117.11,117.01,47.20945671]
[1644269743946,46.567,117.13,117.01,53.20945671]
[1644269744145,46.567,117.13,117.01,47.20945671]
[1644269744347,22.9949,117.13,117.01,47.20945671]
[1644269744948,22.9949,117.13,117.01,53.20945671]
[1644269744949,10.18,117.13,117.01,53.20945671]
[1644269745147,47.7572,117.16,117.01,53.20945671]
[1644269745347,34.9451,117.16,117.02,10.18]
[1644269745555,29.082918,117.15,117.03,48.31980375]
[1644269745747,29.082918,117.15,117.03,58.74980375]
[1644269745954,16.524619,117.14,117.03,66.76958968]
[1644269746152,10.18,117.17,117.03,66.76958968]
[1644269746153,16.568559,117.13,117.03,66.76958968]
[1644269746358,10.18,117.17,117.04,12.8077]
[1644269746549,10.18,117.17,117.05,38.0661482]
[1644269746749,10.18,117.17,117.05,40.33593413]
[1644269747048,10.18,117.17,117.05,46.33593413]
[1644269747248,22.9891,117.19,117.05,46.33593413]
[1644269747453,38.64353158,117.18,117.05,44.3161482]
[1644269747649,22.9906,117.17,117.05,44.3161482]
[1644269747849,44.50302951,117.16,117.05,44.3161482]
[1644269748049,8.262301,117.15,117.05,44.3161482]
[1644269749456,4.131154,117.14,117.05,44.3161482]
[1644269749856,4.131154,117.13,117.05,44.0661482]
[1644269750259,34.74889487,117.12,117.05,44.0661482]
[1644269750463,34.74889487,117.12,117.05,38.0661482]
[1644269750655,44.92889487,117.12,117.05,38.0661482]
[1644269751456,10.18,117.12,117.05,38.0661482]
[1644269751859,12.8171,117.11,117.0,22.10465432]
[1644269752156,12.8171,117.11,117.0,26.89746261]
[1644269752157,10.18,117.1,117.0,26.89746261]
[1644269752758,10.18,117.1,117.01,46.7830052]
[1644269753156,10.18,117.1,117.01,47.0330052]
[1644269753560,10.18,117.1,117.01,48.24019691]
[1644269754761,10.18,117.1,117.02,1.20719171]
[1644269754959,10.18,117.1,117.01,48.24019691]
[1644269755162,8.229,117.13,117.02,1.20719171]
[1644269755560,8.229,117.13,117.04,1.20719171]
[1644269755764,8.229,117.13,117.05,37.15772743]
[1644269755960,12.8113,117.17,117.07,1.20719171]
[1644269756162,42.97733838,117.18,117.08,45.71402287]
[1644269756562,42.97733838,117.18,117.08,45.96402287]
[1644269757363,53.40733838,117.18,117.08,45.96402287]
[1644269758067,59.40733838,117.18,117.08,45.96402287]
[1644269758263,32.421314,117.17,117.08,45.71402287]
[1644269758463,54.39476479,117.16,117.08,45.71402287]
[1644269758863,32.421314,117.15,117.08,45.71402287]
[1644269759095,43.30925921,117.14,117.08,45.71402287]
[1644269759300,12.8149,117.13,117.08,45.71402287]
[1644269759498,36.22995632,117.12,117.04,1.20719171]
[1644269760196,22.9949,117.13,117.04,1.20719171]
[1644269760399,12.8149,117.13,117.05,1.20719171]
[1644269760797,10.18,117.15,117.05,1.20719171]